fUST/lending_fUST_20251029
["ID","MTS","AMOUNT","RATE_DAILY","PERIOD"]
[392603465,1761730242504,-500.0,0.00021512,2]
[392603466,1761730242515,-500.0,0.00021512,2]
[392603467,1761730242524,-316.66090234,0.00021512,2]
[392603468,1761730242536,-183.33909766,0.00021512,2]
[392603469,1761730242546,-500.0,0.00021512,2]
[392603470,1761730242555,-500.0,0.00021512,2]
[392603471,1761730242565,-500.0,0.00021512,2]
[392603472,1761730242575,-433.15883515,0.00021512,2]
[392603473,1761730242584,-500.0,0.00021512,2]
[392603474,1761730242593,-500.0,0.00021512,2]
[392603475,1761730242603,-500.0,0.00021512,2]
[392603476,1761730242612,-500.0,0.00021512,2]
[392603477,1761730242621,-500.0,0.00021512,2]
[392603478,1761730242630,-500.0,0.00021512,2]
[392603479,1761730242640,-500.0,0.00021512,2]
[392603480,1761730242649,-500.0,0.00021512,2]
[392603481,1761730242659,-500.0,0.00021512,2]
[392603482,1761730242668,-500.0,0.00021512,2]
[392603483,1761730242677,-478.32527383,0.00021512,2]
[392603484,1761730242688,-21.67472617,0.00021512,2]
[392603485,1761730242697,-500.0,0.00021512,2]
[392603486,1761730242706,-500.0,0.00021512,2]
[392603487,1761730242716,-370.97097364,0.00021512,2]
[392603488,1761730242726,-500.0,0.00021512,2]
[392603489,1761730242735,-500.0,0.00021512,2]
[392603490,1761730242744,-500.0,0.00021512,2]
[392603491,1761730242754,-438.63268808,0.00021512,2]
[392603492,1761730242763,-520.69759507,0.00021512,2]
[392603493,1761730242773,-500.0,0.00021512,2]
[392603494,1761730242783,-511.25685107,0.00021512,2]
[392603495,1761730242792,-500.0,0.00021512,2]
[392603496,1761730242802,-257.60434413,0.00021512,2]
[392603497,1761730242814,-242.39565587,0.00021512,2]
[392603498,1761730242823,-500.0,0.00021512,2]
[392603499,1761730242833,-500.0,0.00021512,2]
[392603500,1761730242842,-500.0,0.00021512,2]
[392603501,1761730242852,-500.0,0.00021512,2]
[392603502,1761730242861,-500.0,0.00021512,2]
[392603503,1761730242871,-500.0,0.00021512,2]
[392603504,1761730242880,-185.14839703,0.00021512,2]
[392603505,1761730242892,-314.85160297,0.00021512,2]
[392603506,1761730242901,-500.0,0.00021512,2]
[392603507,1761730242910,-500.0,0.00021512,2]
[392603508,1761730242920,-154.18729847,0.00021512,2]
[392603509,1761730242933,-345.81270153,0.00021512,2]
[392603510,1761730242943,-292.51886986,0.00021512,2]
[392603511,1761730242955,-207.48113014,0.00021512,2]
[392603512,1761730242965,-261.65428537,0.00021512,2]
[392603513,1761730242976,-238.34571463,0.00021512,2]
[392603514,1761730242987,-142.549309,0.00021512,2]
[392603515,1761730242999,-357.450691,0.00021512,2]
[392603516,1761730243008,-359.67662851,0.00021512,2]
[392603517,1761730243019,-140.32337149,0.00021512,2]
[392603518,1761730243030,-444.87995786,0.00021512,2]
[392603519,1761730243039,-500.0,0.00021512,2]
[392603520,1761730243049,-129.33557274,0.00021512,2]
[392603522,1761730243085,-370.66442726,0.00021512,2]
[392603523,1761730243095,-500.0,0.00021512,2]
[392603524,1761730243105,-500.0,0.00021512,2]
[392603525,1761730243115,-475.06453264,0.00021512,2]
[392603526,1761730243125,-569.27573521,0.00021512,2]
[392603527,1761730243134,-500.0,0.00021512,2]
[392603528,1761730243144,-500.0,0.00021512,2]
[392603529,1761730243154,-500.0,0.00021512,2]
[392603530,1761730243164,-500.0,0.00021512,2]
[392603531,1761730243173,-446.76766997,0.00021512,2]
[392603532,1761730243203,-53.23233003,0.00021512,2]
[392603533,1761730243213,-500.0,0.00021512,2]
[392603534,1761730243223,-500.0,0.00021512,2]
[392603535,1761730243232,-500.0,0.00021512,2]
[392603536,1761730243242,-500.0,0.00021512,2]
[392603537,1761730243252,-500.0,0.00021512,2]
[392603538,1761730243261,-500.0,0.00021512,2]
[392603539,1761730243271,-500.0,0.00021512,2]
[392603540,1761730243280,-500.0,0.00021512,2]
[392603541,1761730243290,-500.0,0.00021512,2]
[392603542,1761730243304,-412.0,0.00021784,2]
[392603543,1761730243313,-1520.01,0.00021907,10]
[392603544,1761730243323,-570.13,0.00021917,2]
[392603545,1761730243333,-151.0,0.00021918,7]
[392603546,1761730243342,-151.0,0.00021918,7]
[392603547,1761730243354,-151.0,0.00022173,7]
[392603548,1761730243363,-151.0,0.00022173,7]
[392603549,1761730243373,-151.0,0.00022191,7]
[392603550,1761730243382,-151.0,0.00022191,7]
[392603551,1761730243393,-151.0,0.00022191,7]
[392603552,1761730243403,-151.0,0.00022191,7]
[392603553,1761730243413,-197.467119,0.00022191,7]
[392603554,1761730243422,-348.88172753,0.00022465,2]
[392603555,1761730243431,-547.99531503,0.00022465,2]
[392603556,1761730243441,-500.0,0.00022465,2]
[392603557,1761730243451,-500.0,0.00022465,2]
[392603558,1761730243460,-500.0,0.00022465,2]
[392603559,1761730243469,-500.0,0.00022465,2]
[392603560,1761730243478,-500.0,0.00022465,2]
[392603561,1761730243488,-500.0,0.00022465,2]
[392603562,1761730243497,-500.0,0.00022465,2]
[392603563,1761730243507,-500.0,0.00022465,2]
[392603564,1761730243516,-500.0,0.00022465,2]
[392603565,1761730243525,-500.0,0.00022465,2]
[392603566,1761730243534,-500.0,0.00022465,2]
[392603567,1761730243545,-500.0,0.00022465,2]
[392603568,1761730243554,-500.0,0.00022465,2]
[392603569,1761730243563,-500.0,0.00022465,2]
[392603570,1761730243573,-500.0,0.00022465,2]
[392603571,1761730243582,-500.0,0.00022465,2]
[392603572,1761730243591,-500.0,0.00022465,2]
[392603573,1761730243600,-500.0,0.00022465,2]
[392603574,1761730243610,-500.0,0.00022465,2]
[392603575,1761730243619,-500.0,0.00022465,2]
[392603576,1761730243628,-500.0,0.00022465,2]
[392603577,1761730243638,-2468.86,0.00022465,2]
[392603578,1761730243647,-500.0,0.00022465,2]
[392603579,1761730243656,-500.0,0.00022465,2]
[392603580,1761730243665,-500.0,0.00022465,2]
[392603581,1761730243675,-500.0,0.00022465,2]
[392603582,1761730243685,-503.72,0.00022465,2]
[392603583,1761730243694,-502.49532702,0.00022465,2]
[392603584,1761730243703,-500.0,0.00022465,2]
[392603585,1761730243713,-500.0,0.00022465,2]
[392603586,1761730243723,-500.0,0.00022465,2]
[392603587,1761730243883,-158.45227239,0.00022465,2]
[392603588,1761730243928,-341.54772761,0.00022465,2]
[392603589,1761730243937,-500.0,0.00022465,2]
[392603590,1761730243946,-500.0,0.00022465,2]
[392603591,1761730243955,-500.0,0.00022465,2]
[392603592,1761730243964,-500.0,0.00022465,2]
[392603593,1761730243973,-500.0,0.00022465,2]
[392603594,1761730243983,-500.0,0.00022465,2]
[392603595,1761730243992,-500.0,0.00022465,2]
[392603596,1761730244002,-500.0,0.00022465,2]
[392603597,1761730244011,-500.0,0.00022465,2]
[392603598,1761730244020,-500.0,0.00022465,2]
[392603599,1761730244029,-921.23,0.00022465,2]
[392603600,1761730244038,-129.17714239,0.00022465,2]
[392603601,1761730244053,-377.03285761,0.00022465,2]
[392603602,1761730244062,-500.0,0.00022465,2]
[392603603,1761730244072,-500.0,0.00022465,2]
[392603604,1761730244081,-500.0,0.00022465,2]
[392603605,1761730244092,-537.97,0.00022465,2]
[392603606,1761730244101,-500.0,0.00022465,2]
[392603607,1761730244111,-500.0,0.00022465,2]
[392603608,1761730244120,-500.0,0.00022465,2]
[392603609,1761730244129,-500.0,0.00022465,2]
[392603610,1761730244139,-500.0,0.00022465,2]
[392603611,1761730244149,-500.0,0.00022465,2]
[392603612,1761730244158,-500.0,0.00022465,2]
[392603613,1761730244168,-1172.67,0.00022465,2]
[392603614,1761730244177,-500.0,0.00022465,2]
[392603615,1761730244186,-500.0,0.00022465,2]
[392603616,1761730244195,-151.0,0.00022465,7]
[392603617,1761730244204,-151.0,0.00022465,7]
[392603618,1761730244213,-151.0,0.00022465,7]
[392603619,1761730244222,-151.0,0.00022465,7]
[392603620,1761730244231,-151.0,0.00022465,7]
[392603621,1761730244240,-151.0,0.00022465,7]
[392603622,1761730244249,-507.47,0.00022465,2]
[392603623,1761730244258,-500.0,0.00022465,2]
[392603624,1761730244268,-500.0,0.00022465,2]
[392603625,1761730244277,-500.0,0.00022465,2]
[392603626,1761730244286,-572.06,0.00022465,2]
[392603627,1761730244298,-500.0,0.00022465,2]
[392603628,1761730244308,-500.0,0.00022465,2]
[392603629,1761730244317,-604.68,0.00022465,2]
[392603630,1761730244326,-500.0,0.00022465,2]
[392603631,1761730244335,-500.0,0.00022465,2]
[392603632,1761730244344,-500.0,0.00022465,2]
[392603633,1761730244353,-500.0,0.00022465,2]
[392603634,1761730244362,-500.0,0.00022465,2]
[392603635,1761730244372,-500.0,0.00022465,2]
[392603636,1761730244381,-500.0,0.00022465,2]
[392603637,1761730244390,-500.0,0.00022465,2]
[392603638,1761730244400,-500.0,0.00022465,2]
[392603639,1761730244409,-675.95,0.00022465,2]
[392603640,1761730244419,-500.0,0.00022465,2]
[392603641,1761730244428,-500.0,0.00022465,2]
[392603642,1761730244437,-500.0,0.00022465,2]
[392603643,1761730244446,-500.0,0.00022465,2]
[392603644,1761730244456,-549.65,0.00022465,2]
[392603645,1761730244465,-500.0,0.00022465,2]
[392603646,1761730244474,-501.45778303,0.00022465,2]
[392603647,1761730244483,-472.74219251,0.00022465,2]
[392603648,1761730244493,-500.0,0.00022465,2]
[392603649,1761730244502,-500.0,0.00022465,2]
[392603650,1761730244512,-500.0,0.00022465,2]
[392603651,1761730244521,-500.0,0.00022465,2]
[392603652,1761730244531,-500.0,0.00022465,2]
[392603653,1761730244540,-564.93,0.00022465,2]
[392603654,1761730244549,-500.0,0.00022465,2]
[392603655,1761730244559,-500.0,0.00022465,2]
[392603656,1761730244569,-500.0,0.00022465,2]
[392603657,1761730244578,-508.8,0.00022465,2]
[392603658,1761730244588,-500.0,0.00022465,2]
[392603659,1761730244597,-500.0,0.00022465,2]
[392603660,1761730244606,-500.0,0.00022465,2]
[392603661,1761730244615,-723.49,0.00022465,2]
[392603662,1761730244624,-500.0,0.00022465,2]
[392603663,1761730244633,-500.0,0.00022465,2]
[392603664,1761730244643,-500.0,0.00022465,2]
[392603665,1761730244652,-500.0,0.00022465,2]
[392603666,1761730244661,-605.32,0.00022465,2]
[392603667,1761730244671,-500.0,0.00022465,2]
[392603668,1761730244679,-500.0,0.00022465,2]
[392603669,1761730244688,-500.0,0.00022465,2]
[392603670,1761730244698,-500.0,0.00022465,2]
[392603671,1761730244707,-500.0,0.00022465,2]
[392603672,1761730244717,-500.0,0.00022465,2]
[392603673,1761730244727,-500.0,0.00022465,2]
[392603674,1761730244736,-500.0,0.00022465,2]
[392603675,1761730244745,-500.0,0.00022465,2]
[392603676,1761730244754,-500.0,0.00022465,2]
[392603677,1761730244763,-384.99296894,0.00022465,2]
[392603678,1761730244780,-115.00703106,0.00022465,2]
[392603679,1761730244790,-500.0,0.00022465,2]
[392603680,1761730244800,-500.0,0.00022465,2]
[392603681,1761730244809,-500.0,0.00022465,2]
[392603682,1761730244818,-500.0,0.00022465,2]
[392603683,1761730244827,-100.34904315,0.00022465,2]
[392603684,1761730244838,-399.65095685,0.00022465,2]
[392603685,1761730244848,-266.69242707,0.00022465,2]
[392603686,1761730244859,-233.30757293,0.00022465,2]
[392603687,1761730244869,-500.0,0.00022465,2]
[392603688,1761730244879,-596.31,0.00022465,2]
[392603689,1761730244888,-500.0,0.00022465,2]
[392603690,1761730244897,-500.0,0.00022465,2]
[392603691,1761730244906,-500.0,0.00022465,2]
[392603692,1761730244916,-500.0,0.00022465,2]
[392603693,1761730244926,-500.0,0.00022465,2]
[392603694,1761730244935,-781.76,0.00022465,2]
[392603695,1761730244944,-500.0,0.00022465,2]
[392603696,1761730244953,-500.0,0.00022465,2]
[392603697,1761730244962,-500.0,0.00022465,2]
[392603698,1761730244972,-500.0,0.00022465,2]
[392603699,1761730244982,-500.0,0.00022465,2]
[392603700,1761730244991,-500.0,0.00022465,2]
[392603701,1761730245001,-500.0,0.00022465,2]
[392603702,1761730245011,-500.0,0.00022465,2]
[392603703,1761730245021,-500.0,0.00022465,2]
[392603704,1761730245030,-500.0,0.00022465,2]
[392603705,1761730245040,-500.0,0.00022465,2]
[392603706,1761730245049,-750.9,0.00022465,2]
[392603707,1761730245059,-500.0,0.00022465,2]
[392603708,1761730245068,-516.45,0.00022465,2]
[392603709,1761730245077,-500.0,0.00022465,2]
[392603710,1761730245087,-500.0,0.00022465,2]
[392603711,1761730245096,-500.0,0.00022465,2]
[392603712,1761730245106,-500.0,0.00022465,2]
[392603713,1761730245116,-500.0,0.00022465,2]
[392603715,1761730245125,-500.0,0.00022465,2]
[392603716,1761730245134,-500.0,0.00022465,2]
[392603717,1761730245143,-500.0,0.00022465,2]
[392603718,1761730245152,-500.0,0.00022465,2]
[392603719,1761730245161,-577.7724271,0.00022465,2]
[392603720,1761730245172,-1087.0975729,0.00022465,2]
[392603721,1761730245182,-500.0,0.00022465,2]
[392603722,1761730245191,-500.0,0.00022465,2]
[392603723,1761730245201,-500.0,0.00022465,2]
[392603724,1761730245210,-318.53988224,0.00022465,2]
[392603730,1761730245374,-181.46011776,0.00022465,2]
[392603731,1761730245384,-237.47845842,0.00022465,2]
[392603732,1761730245396,-262.52154158,0.00022465,2]
[392603733,1761730245407,-1210.2,0.00022465,2]
[392603734,1761730245416,-12702.71,0.00022465,2]
[392603735,1761730245427,-610.26,0.00022465,2]
[392603736,1761730245437,-581.76,0.00022465,2]
[392603737,1761730245447,-822.25,0.00022465,2]
[392603738,1761730245458,-2204.09,0.00022465,2]
[392603739,1761730245467,-412.16257286,0.00022465,2]
[392603740,1761730245477,-500.0,0.00022465,2]
[392603741,1761730245486,-500.0,0.00022465,2]
[392603742,1761730245496,-500.0,0.00022465,2]
[392603744,1761730245505,-500.0,0.00022465,2]
[392603745,1761730245515,-500.0,0.00022465,2]
[392603746,1761730245524,-500.0,0.00022465,2]
[392603747,1761730245533,-500.0,0.00022465,2]
[392603748,1761730245542,-563.34,0.00022465,2]
[392603749,1761730245552,-151.0,0.00022465,7]
[392603750,1761730245562,-501.49,0.00022465,2]
[392603751,1761730245572,-343.64908019,0.00022465,2]
[392603752,1761730245584,-156.35091981,0.00022465,2]
[392603753,1761730245593,-808.95,0.00022465,2]
[392603754,1761730245602,-183.89908019,0.00022465,2]
[392603756,1761730245617,-258.06103843,0.00022465,2]
[392603758,1761730245628,-58.03988138,0.00022465,2]
[392603759,1761730245638,-500.0,0.00022465,2]
[392603760,1761730245647,-500.0,0.00022465,2]
[392603761,1761730245656,-500.0,0.00022465,2]
[392603762,1761730245666,-641.42,0.00022465,2]
[392603763,1761730245675,-685.52,0.00022465,2]
[392603764,1761730245684,-1223.68,0.00022465,2]
[392603765,1761730245693,-500.0,0.00022465,2]
[392603766,1761730245703,-500.0,0.00022465,2]
[392603767,1761730245712,-500.0,0.00022465,2]
[392603768,1761730245721,-500.0,0.00022465,2]
[392603769,1761730245730,-760.94,0.00022465,2]
[392603770,1761730245740,-934.94,0.00022465,2]
[392603771,1761730245749,-500.0,0.00022465,2]
[392603772,1761730245758,-586.41,0.00022465,2]
[392603773,1761730245767,-500.0,0.00022465,2]
[392603774,1761730245776,-1513.26080466,0.00022465,2]
[392603776,1761730246094,-984.0,0.00021784,2]
[392603777,1761730246104,-239.26919534,0.00022465,2]
[392603778,1761730246113,-500.0,0.00022465,2]
[392603779,1761730246123,-640.4,0.00022465,2]
[392603780,1761730246132,-500.0,0.00022465,2]
[392603781,1761730246142,-500.0,0.00022465,2]
[392603782,1761730246151,-713.3,0.00022465,2]
[392603783,1761730246161,-500.0,0.00022465,2]
[392603784,1761730246171,-500.0,0.00022465,2]
[392603785,1761730246180,-500.0,0.00022465,2]
[392603786,1761730246190,-505.01,0.00022465,2]
[392603787,1761730246199,-500.0,0.00022465,2]
[392603788,1761730246208,-500.0,0.00022465,2]
[392603789,1761730246217,-695.6564204,0.00022465,2]
[392603791,1761730326374,817.181078,0.00013699,2]
[392603792,1761730351614,189.99040894,0.00016814,2]
[392603793,1761730352854,151.0,0.00030136,120]
[392603794,1761730357547,1000.0,0.00030136,120]
[392603795,1761730358639,1000.0,0.00030136,120]
[392603798,1761730475955,334.32875014,0.00030136,120]
[392603799,1761730591445,172.970669,0.00020189,61]
[392603800,1761730591640,172.970669,0.00020189,120]
[392603804,1761730777749,385.33,0.00017429,2]
[392603805,1761731069407,-3552.68,0.00033559,60]
[392603806,1761731069433,-3552.68,0.00033559,60]
[392603807,1761731069458,-3552.68,0.00033559,60]
[392603808,1761731069484,-3552.68,0.00033559,60]
[392603809,1761731069510,-3552.68,0.00033559,60]
[392603810,1761731069536,-3552.68,0.00033559,60]
[392603811,1761731069563,-3552.68,0.00033559,60]
[392603812,1761731069587,-3552.68,0.00033559,60]
[392603813,1761731069615,-3552.68,0.00033559,60]
[392603814,1761731069641,-3552.68,0.00033559,60]
[392603815,1761731069668,-3552.68,0.00033559,60]
[392603816,1761731069693,-3552.68,0.00033559,60]
[392603817,1761731069719,-3552.68,0.00033559,60]
[392603818,1761731069744,-3552.68,0.00033559,60]
[392603819,1761731069770,-3552.68,0.00033559,60]
[392603820,1761731069796,-3552.68,0.00033559,60]
[392603821,1761731069821,-3552.68,0.00033559,60]
[392603822,1761731069848,-3552.68,0.00033559,60]
[392603823,1761731069871,-3552.68,0.00033559,60]
[392603824,1761731069895,-3552.68,0.00033559,60]
[392603825,1761731069920,-3552.68,0.00033559,60]
[392603826,1761731069945,-3552.68,0.00033559,60]
[392603827,1761731069969,-3552.68,0.00033559,60]
[392603828,1761731069993,-3552.83753472,0.00033559,60]
[392603829,1761731070017,-404.209,0.00033559,60]
[392603830,1761731070040,-404.209,0.00033559,60]
[392603831,1761731070062,-404.209,0.00033559,60]
[392603832,1761731070084,-404.209,0.00033559,60]
[392603833,1761731070109,-404.209,0.00033559,60]
[392603834,1761731070132,-1011.23,0.00033559,120]
[392603835,1761731070154,-192.70960093,0.00033559,120]
[392603836,1761731070177,-4523.51635438,0.00033559,120]
[392603837,1761731070200,-511.98535104,0.00033559,120]
[392603838,1761731070222,-2346.62684915,0.00033559,120]
[392603839,1761731070244,-302.54748177,0.00033559,120]
[392603840,1761731070266,-3619.75413276,0.00033559,60]
[392603841,1761731070288,-283.32238042,0.00033559,120]
[392603842,1761731070310,-1278.06361346,0.00033559,60]
[392603843,1761731070333,-6583.87978122,0.00033559,60]
[392603844,1761731070357,-307.70924898,0.00033559,120]
[392603845,1761731070380,-993.34934651,0.00033559,120]
[392603846,1761731070403,-943.25926279,0.00033559,120]
[392603847,1761731070425,-931.94422116,0.00033559,120]
[392603848,1761731070448,-999.999985,0.00033559,120]
[392603849,1761731070470,-916.63377306,0.00033559,60]
[392603850,1761731070492,-311.78625158,0.00033559,120]
[392603851,1761731070515,-870.03139503,0.00033559,120]
[392603852,1761731070537,-958.70364385,0.00033559,120]
[392603853,1761731070560,-711.35151988,0.00033559,120]
[392603854,1761731070582,-1091.7728408,0.00033559,60]
[392603855,1761731070605,-240.82074905,0.00033559,120]
[392603856,1761731070628,-249.15222049,0.00033559,120]
[392603857,1761731070650,-707.17411761,0.00033559,120]
[392603858,1761731070673,-348.28305942,0.00033559,120]
[392603859,1761731070696,-570.9376283,0.00033559,120]
[392603860,1761731070719,-1214.63184101,0.00033559,60]
[392603861,1761731070741,-638.4399083,0.00033559,120]
[392603862,1761731070765,-383.65218365,0.00033559,120]
[392603863,1761731070788,-473.72833206,0.00033559,120]
[392603864,1761731070811,-1037.62232807,0.00033559,120]
[392603865,1761731070837,-676.247536,0.00033559,120]
[392603866,1761731070859,-909.04970539,0.00033559,120]
[392603867,1761731070884,-1386.83060769,0.00033559,120]
[392603868,1761731070907,-1194.00167835,0.00033559,120]
[392603869,1761731070930,-200.29545738,0.00033559,120]
[392603870,1761731070952,-438.83776949,0.00033559,120]
[392603871,1761731070976,-1392.53313923,0.00033559,120]
[392603872,1761731070999,-222.12271251,0.00033559,120]
[392603873,1761731071022,-1026.37781931,0.00033559,120]
[392603874,1761731071046,-326.0952108,0.00033559,120]
[392603875,1761731071069,-891.61910344,0.00033559,120]
[392603876,1761731071092,-560.8978093,0.00033559,120]
[392603877,1761731071116,-1038.81455087,0.00033559,60]
[392603878,1761731071140,-1131.48143573,0.00033559,60]
[392603879,1761731071163,-1246.11321067,0.00033559,60]
[392603880,1761731071189,-167.23712986,0.00033559,120]
[392603881,1761731071213,-548.10757492,0.00033559,120]
[392603882,1761731071237,-1039.9429502,0.00033559,120]
[392603883,1761731071261,-225.70381418,0.00033559,120]
[392603884,1761731071287,-668.67578872,0.00033559,120]
[392603885,1761731071310,-625.37185805,0.00033559,120]
[392603886,1761731071333,-276.42291872,0.00033559,120]
[392603887,1761731071355,-270.00433603,0.00033559,120]
[392603888,1761731071543,-354.09576099,0.00033559,120]
[392603889,1761731071567,-1151.16312403,0.00033559,120]
[392603890,1761731071591,-1022.59431189,0.00033559,120]
[392603891,1761731071614,-482.51047621,0.00033559,120]
[392603892,1761731071638,-816.28967697,0.00033559,120]
[392603893,1761731071662,-1014.90924107,0.00033559,60]
[392603894,1761731071684,-294.75924084,0.00033559,120]
[392603895,1761731071707,-666.82804114,0.00033559,120]
[392603897,1761731071733,-161.04572514,0.00033559,120]
[392603899,1761731071755,-580.70118337,0.00033559,120]
[392603900,1761731071779,-682.25176731,0.00033559,60]
[392603902,1761731071801,-1124.0,0.00033559,120]
[392603904,1761731071827,-812.98737288,0.00033559,60]
[392603906,1761731071850,-500.0,0.00033559,120]
[392603908,1761731071873,-100812.65854875,0.00033559,60]
[392603910,1761731071895,-1007.25693212,0.00033559,120]
[392603917,1761731072035,1366.76908795,0.00033559,60]
[392603925,1761731109557,455.4516,0.00033559,60]
[392603926,1761731141091,-190.65069103,0.00018503,2]
[392603927,1761731201425,2000.0,0.00033559,60]
[392604020,1761731235089,-309.34930897,0.00018503,2]
[392604021,1761731235110,-150.0,0.00018552,2]
[392604022,1761731235130,-320.93594131,0.000186,2]
[392604023,1761731235150,-190.37038976,0.00019699,4]
[392604024,1761731235169,-3548.07706207,0.00019856,2]
[392604025,1761731235188,-54.97725428,0.00020187,2]
[392604041,1761731238060,2000.0,0.00033559,60]
[392604056,1761731241107,-165.46393467,0.00020187,2]
[392604085,1761731245147,-596.73988905,0.00020187,2]
[392604086,1761731245167,-172.970669,0.00020189,2]
[392604088,1761731245188,-190.02812,0.0002019,2]
[392604089,1761731245209,-177.0,0.00020552,2]
[392604091,1761731245230,-1200.0,0.00020655,2]
[392604092,1761731245251,-300.0,0.00020655,2]
[392604093,1761731245271,-1186.58602058,0.00020656,2]
[392604148,1761731272787,2000.0,0.00033559,60]
[392604150,1761731307852,2000.0,0.00033559,60]
[392604155,1761731342517,2000.0,0.00033559,60]
[392604156,1761731353648,271.16703883,0.00033559,60]
[392604158,1761731369416,266.91,0.00030137,120]
[392604159,1761731376778,2000.0,0.00033559,60]
[392604161,1761731411290,2000.0,0.00033559,60]
[392604172,1761731432061,-466.0,0.00020656,2]
[392604174,1761731432070,-300.0,0.00020658,2]
[392604176,1761731432081,-300.0,0.00020658,2]
[392604178,1761731432091,-198.0,0.00020658,2]
[392604180,1761731432099,-300.0,0.00020658,2]
[392604182,1761731432109,-1200.0,0.00020658,2]
[392604184,1761731432118,-300.0,0.00020658,2]
[392604186,1761731432127,-6684.598,0.00020659,2]
[392604188,1761731432138,-367.8240237,0.00020659,2]
[392604190,1761731432147,-842.0,0.0002069,2]
[392604192,1761731432156,-403.72361849,0.00021284,2]
[392604194,1761731432166,-3531.18796582,0.00021433,2]
[392604196,1761731432175,-999.0,0.00021438,2]
[392604198,1761731432185,-6855.07877005,0.00021438,2]
[392604201,1761731432194,-151.13734586,0.00021499,2]
[392604203,1761731432203,-3692.50374311,0.0002151,2]
[392604206,1761731432212,-215.89820744,0.00021511,2]
[392604208,1761731432223,-500.0,0.00021511,2]
[392604210,1761731432233,-500.0,0.00021511,2]
[392604212,1761731432242,-500.0,0.00021511,2]
[392604214,1761731432252,-500.0,0.00021511,2]
[392604215,1761731432261,-477.94913791,0.00021511,2]
[392604216,1761731432271,-500.0,0.00021511,2]
[392604217,1761731432281,-500.0,0.00021511,2]
[392604218,1761731432290,-201.89917074,0.00021511,2]
[392604219,1761731432300,-216.0977731,0.00021511,2]
[392604220,1761731432309,-500.0,0.00021511,2]
[392604221,1761731432319,-500.0,0.00021511,2]
[392604222,1761731432328,-224.52195501,0.00021511,2]
[392604223,1761731432338,-500.0,0.00021511,2]
[392604224,1761731432348,-500.0,0.00021511,2]
[392604225,1761731432358,-274.3097166,0.00021511,2]
[392604226,1761731432367,-382.07029868,0.00021511,2]
[392604227,1761731432377,-500.0,0.00021511,2]
[392604228,1761731432386,-500.0,0.00021511,2]
[392604229,1761731432396,-500.0,0.00021511,2]
[392604230,1761731432405,-500.0,0.00021511,2]
[392604231,1761731432414,-500.0,0.00021511,2]
[392604232,1761731432424,-500.0,0.00021511,2]
[392604233,1761731432433,-163.86818145,0.00021511,2]
[392604234,1761731432442,-500.0,0.00021511,2]
[392604235,1761731432451,-500.0,0.00021512,2]
[392604236,1761731432461,-370000.0,0.00021512,2]
[392604237,1761731432471,-500.0,0.00021533,2]
[392604238,1761731432480,-155.99646,0.00021617,5]
[392604239,1761731432490,-1684.0,0.00021675,2]
[392604240,1761731432499,-500.0,0.00021786,2]
[392604241,1761731432508,-500.0,0.00021811,2]
[392604242,1761731432517,-2167.0,0.00021811,2]
[392604243,1761731432527,-429.161,0.00021811,2]
[392604244,1761731432536,-633.0,0.00021811,2]
[392604245,1761731432547,-412.0,0.00021811,2]